fUSD/lending_fUSD_20240214
["ID","MTS","AMOUNT","RATE_DAILY","PERIOD"]
[314004399,1707922266576,-500.0,0.0003726,2]
[314004400,1707922266586,-666.24,0.0003726,2]
[314004401,1707922266595,-1519.2,0.0003726,2]
[314004402,1707922266604,-500.0,0.0003726,2]
[314004403,1707922266615,-500.0,0.0003726,2]
[314004404,1707922266624,-501.69,0.0003726,2]
[314004405,1707922266635,-5465.66,0.0003726,2]
[314004406,1707922266644,-500.0,0.0003726,2]
[314004407,1707922266653,-500.0,0.0003726,2]
[314004408,1707922266663,-500.0,0.0003726,2]
[314004409,1707922266672,-675.71,0.0003726,2]
[314004410,1707922266681,-663.56,0.0003726,2]
[314004411,1707922266691,-7374.48,0.0003726,2]
[314004412,1707922266701,-774.51,0.0003726,2]
[314004413,1707922266711,-500.0,0.0003726,2]
[314004414,1707922266720,-500.0,0.0003726,2]
[314004415,1707922266730,-987.87,0.0003726,2]
[314004416,1707922266740,-1065.75,0.0003726,2]
[314004417,1707922266750,-500.0,0.0003726,2]
[314004418,1707922266759,-500.0,0.0003726,2]
[314004419,1707922266769,-500.0,0.0003726,2]
[314004420,1707922266779,-1077.82,0.0003726,2]
[314004421,1707922266790,-837.25,0.0003726,2]
[314004422,1707922266800,-500.0,0.0003726,2]
[314004423,1707922266812,-1136.21,0.0003726,2]
[314004424,1707922266822,-1239.19,0.0003726,2]
[314004425,1707922266832,-4429.77,0.0003726,2]
[314004426,1707922266842,-500.0,0.0003726,2]
[314004427,1707922266852,-1063.82,0.0003726,2]
[314004428,1707922266864,-2212.71,0.0003726,2]
[314004429,1707922266874,-381.4648496,0.0003726,2]
[314004430,1707922267473,-509.4251504,0.0003726,2]
[314004431,1707922267488,-608.6,0.0003726,2]
[314004432,1707922267510,-500.0,0.0003726,2]
[314004433,1707922267527,-1033.57,0.0003726,2]
[314004434,1707922267546,-1901.13,0.0003726,2]
[314004435,1707922267559,-500.0,0.0003726,2]
[314004436,1707922267574,-500.0,0.0003726,2]
[314004437,1707922267589,-892.59208412,0.0003726,2]
[314004438,1707922267611,-8623.11791588,0.0003726,2]
[314004439,1707922267630,-500.0,0.0003726,2]
[314004440,1707922267641,-2217.93,0.0003726,2]
[314004441,1707922267654,-691.56,0.0003726,2]
[314004442,1707922267670,-500.0,0.0003726,2]
[314004443,1707922267684,-591.31,0.0003726,2]
[314004444,1707922267702,-547.71,0.0003726,2]
[314004445,1707922267715,-500.0,0.0003726,2]
[314004446,1707922267728,-3952.0,0.0003726,2]
[314004447,1707922267741,-438.80221784,0.0003726,2]
[314004448,1707922267754,-500.0,0.0003726,2]
[314004449,1707922267768,-3385.49,0.0003726,2]
[314004450,1707922267780,-500.0,0.0003726,2]
[314004451,1707922267795,-670.6,0.0003726,2]
[314004452,1707922267808,-500.0,0.0003726,2]
[314004453,1707922267821,-500.0,0.0003726,2]
[314004454,1707922267835,-4227.26,0.0003726,2]
[314004455,1707922267847,-500.0,0.0003726,2]
[314004456,1707922267860,-356.9189886,0.0003726,2]
[314004457,1707922267872,-2400.94,0.0003726,2]
[314004458,1707922267885,-908.45,0.0003726,2]
[314004459,1707922267897,-500.0,0.0003726,2]
[314004460,1707922267911,-1094.68,0.0003726,2]
[314004461,1707922267923,-500.0,0.0003726,2]
[314004462,1707922267937,-865.54,0.0003726,2]
[314004463,1707922267950,-500.0,0.0003726,2]
[314004464,1707922267963,-36067.24,0.0003726,2]
[314004465,1707922267976,-500.0,0.0003726,2]
[314004466,1707922267989,-1009.39,0.0003726,2]
[314004467,1707922268002,-500.0,0.0003726,2]
[314004468,1707922268015,-686.35,0.0003726,2]
[314004469,1707922268028,-672.14,0.0003726,2]
[314004470,1707922268041,-594.1,0.0003726,2]
[314004471,1707922268054,-1009.36,0.0003726,2]
[314004472,1707922268067,-3382.18,0.0003726,2]
[314004473,1707922268079,-500.0,0.0003726,2]
[314004474,1707922268092,-521.72,0.0003726,2]
[314004475,1707922268105,-8403.39,0.0003726,2]
[314004476,1707922268118,-952.56,0.0003726,2]
[314004477,1707922268130,-522.99,0.0003726,2]
[314004478,1707922268143,-500.0,0.0003726,2]
[314004479,1707922268156,-609.77,0.0003726,2]
[314004480,1707922268168,-500.0,0.0003726,2]
[314004481,1707922268180,-500.0,0.0003726,2]
[314004482,1707922268192,-500.0,0.0003726,2]
[314004483,1707922268205,-500.0,0.0003726,2]
[314004484,1707922268218,-500.0,0.0003726,2]
[314004485,1707922268231,-1592.96,0.0003726,2]
[314004486,1707922268244,-793.51,0.0003726,2]
[314004487,1707922268256,-500.0,0.0003726,2]
[314004488,1707922268268,-1138.92,0.0003726,2]
[314004489,1707922268280,-872.27,0.0003726,2]
[314004490,1707922268293,-3696.86,0.0003726,2]
[314004491,1707922268305,-1091.42,0.0003726,2]
[314004492,1707922268316,-500.0,0.0003726,2]
[314004493,1707922268328,-500.0,0.0003726,2]
[314004494,1707922268340,-500.0,0.0003726,2]
[314004495,1707922268352,-500.0,0.0003726,2]
[314004496,1707922268363,-583.39668037,0.0003726,2]
[314004497,1707922268376,-500.0,0.0003726,2]
[314004498,1707922268389,-500.0,0.0003726,2]
[314004499,1707922268401,-932.74,0.0003726,2]
[314004500,1707922268413,-531.46,0.0003726,2]
[314004501,1707922268425,-2584.03,0.0003726,2]
[314004502,1707922268437,-3521.46,0.0003726,2]
[314004503,1707922268449,-5553.68,0.0003726,2]
[314004504,1707922268462,-500.0,0.0003726,2]
[314004505,1707922268474,-682.49,0.0003726,2]
[314004506,1707922268486,-500.0,0.0003726,2]
[314004507,1707922268499,-641.54,0.0003726,2]
[314004508,1707922268511,-778.1,0.0003726,2]
[314004509,1707922268523,-729.43,0.0003726,2]
[314004510,1707922268536,-1576.35,0.0003726,2]
[314004511,1707922268551,-500.0,0.0003726,2]
[314004512,1707922268563,-500.0,0.0003726,2]
[314004513,1707922268576,-911.59,0.0003726,2]
[314004514,1707922268588,-500.0,0.0003726,2]
[314004515,1707922268601,-500.0,0.0003726,2]
[314004516,1707922268615,-500.0,0.0003726,2]
[314004517,1707922268627,-2300.79,0.0003726,2]
[314004518,1707922268641,-500.0,0.0003726,2]
[314004519,1707922268655,-500.0,0.0003726,2]
[314004520,1707922268668,-1050.88,0.0003726,2]
[314004521,1707922268681,-591.88,0.0003726,2]
[314004522,1707922268701,-688.71,0.0003726,2]
[314004523,1707922268724,-1778.25,0.0003726,2]
[314004524,1707922268742,-500.0,0.0003726,2]
[314004525,1707922268761,-1696.84,0.0003726,2]
[314004526,1707922268781,-1200.7,0.0003726,2]
[314004527,1707922268796,-500.0,0.0003726,2]
[314004528,1707922268809,-1331.35,0.0003726,2]
[314004529,1707922268821,-500.0,0.0003726,2]
[314004530,1707922268844,-1004.66,0.0003726,2]
[314004531,1707922268857,-829.59,0.0003726,2]
[314004532,1707922268869,-1165.08,0.0003726,2]
[314004533,1707922268882,-500.0,0.0003726,2]
[314004534,1707922268898,-329.99176135,0.0003726,2]
[314004535,1707922268919,-912.73720553,0.0003726,2]
[314004536,1707922276716,237507.44429097,0.00023,2]
[314004537,1707922276740,4000.0,0.00023,2]
[314004538,1707922276761,4000.0,0.00023,2]
[314004539,1707922276782,4000.0,0.00023,2]
[314004540,1707922276802,4000.0,0.00023,2]
[314004541,1707922276825,4000.0,0.00023,2]
[314004542,1707922276845,4000.0,0.00023,2]
[314004543,1707922276867,4000.0,0.00023,2]
[314004544,1707922276888,4000.0,0.00023,2]
[314004545,1707922276908,4000.0,0.00023,2]
[314004546,1707922276927,4000.0,0.00023,2]
[314004547,1707922276947,4000.0,0.00023,2]
[314004548,1707922276966,4000.0,0.00023,2]
[314004549,1707922276985,4000.0,0.00023,2]
[314004550,1707922277006,4000.0,0.00023,2]
[314004551,1707922277026,4000.0,0.00023,2]
[314004552,1707922277047,4000.0,0.00023,2]
[314004553,1707922277065,4000.0,0.00023,2]
[314004554,1707922277084,4000.0,0.00023,2]
[314004555,1707922277103,4000.0,0.00023,2]
[314004556,1707922277122,4000.0,0.00023,2]
[314004557,1707922277141,4000.0,0.00023,2]
[314004558,1707922277160,4000.0,0.00023,2]
[314004559,1707922277180,4000.0,0.00023,2]
[314004560,1707922277199,4000.0,0.00023,2]
[314004561,1707922277227,1536211.22872792,0.00023,2]
[314004562,1707922287249,566.81791702,0.00025,30]
[314004563,1707922368970,155.2946353,0.00021848,2]
[314004564,1707922437215,155.0,0.00021848,2]
[314004565,1707922453216,155.0,0.00021848,2]
[314004566,1707922457714,630839.73453179,1e-08,2]
[314004567,1707922457790,19547.66255014,1e-08,2]
[314004568,1707922467219,150.0,0.00021848,2]
[314004569,1707922467239,5.0,0.00021848,2]
[314004570,1707922485317,155.0,0.00021848,2]
[314004571,1707922509211,104.67659214,0.00021848,2]
[314004572,1707922509232,50.32340786,0.00021848,2]
[314004573,1707922535244,155.0,0.00021848,2]
[314004574,1707922555229,269.57432074,0.00021848,2]
[314004575,1707922580350,177.96,0.0002708,120]
[314004576,1707922598682,871.81571903,0.00021848,2]
[314004577,1707922611613,3143.8809787,0.00021846,2]
[314004578,1707922747899,266.97849785,0.00021846,2]
[314004579,1707922803274,5833.82709022,0.00021649,2]
[314004580,1707922803550,5000.0,0.00021649,2]
[314004585,1707923141908,229.23,0.00020382,2]
[314004598,1707923215868,600.0,0.00021787,2]
[314004614,1707923287980,2069.38,0.00021749,2]
[314004616,1707923289685,2000.0,0.00021713,2]
[314004622,1707923320675,184.88978932,0.00021806,2]
[314004625,1707923328388,200.0,0.00021713,2]
[314004629,1707923350016,596.67853576,0.000195,2]
[314004632,1707923357153,-1051.50955881,0.00021902,2]
[314004633,1707923357174,-526.82223486,0.00021903,2]
[314004634,1707923357197,-9400.27508737,0.00021903,2]
[314004635,1707923357218,-363.75014111,0.00021904,2]
[314004636,1707923357240,-155.0,0.00021904,2]
[314004637,1707923357262,-1047.35508417,0.00021904,2]
[314004638,1707923357290,-1912.95752079,0.00021905,2]
[314004639,1707923357317,-421.75949333,0.00021905,2]
[314004640,1707923357345,-150.0,0.00021905,2]
[314004641,1707923357365,-500.0,0.00021906,2]
[314004642,1707923357386,-155.0,0.00021906,2]
[314004643,1707923357406,-9787.23887956,0.00021909,2]
[314004644,1707923359103,-155.0,0.00021902,2]
[314004645,1707923359124,-2605.00836615,0.00021902,2]
[314004646,1707923359144,-799.95049768,0.00021909,2]
[314004647,1707923359165,-409.59691294,0.00021911,2]
[314004648,1707923359185,-31218.23322323,0.00021912,2]
[314004651,1707923369819,421.75949333,0.00021899,2]
[314004652,1707923370156,-500.0,0.00021901,2]
[314004653,1707923370179,-12084.5722445,0.00021912,2]
[314004654,1707923370200,-320.99,0.00021916,2]
[314004655,1707923370219,-150.0,0.00021961,2]
[314004656,1707923370240,-241.79284484,0.00022,2]
[314004657,1707923370260,-150.0,0.00022,2]
[314004658,1707923370280,-500.0,0.00022159,2]
[314004659,1707923370304,-278.76,0.0002241,2]
[314004660,1707923370324,-216.59900075,0.00022412,2]
[314004661,1707923370342,-155.0,0.00022431,2]
[314004662,1707923370361,-585.33944638,0.00022431,2]
[314004663,1707923370381,-181.56713177,0.00022431,2]
[314004664,1707923370400,-1226.77842006,0.00022431,2]
[314004665,1707923370419,-24710.6559117,0.00022432,2]
[314004666,1707923373098,-363.36975338,0.0002243,2]
[314004667,1707923373119,-1046.53109151,0.0002243,2]
[314004668,1707923373139,-261.93038606,0.0002243,2]
[314004669,1707923373158,-1105.16896905,0.00022432,2]
[314004726,1707923432113,-155.0,0.00022184,2]
[314004728,1707923432124,-500.0,0.00022185,2]
[314004730,1707923432134,-220.57,0.00022244,2]
[314004732,1707923432145,-214.26792117,0.00022419,2]
[314004734,1707923432155,-1130.94675625,0.00022429,2]
[314004737,1707923432169,-3929.21511495,0.00022429,2]
[314004738,1707923432180,-164.53107162,0.0002243,2]
[314004740,1707923432192,-345.07804837,0.0002243,2]
[314004742,1707923432202,-321.6662568,0.0002243,2]
[314004744,1707923432212,-203.00716273,0.0002243,2]
[314004745,1707923432222,-176.01362308,0.0002243,2]
[314004746,1707923432232,-1910.85333917,0.00022431,2]
[314004747,1707923432242,-1046.30449321,0.00022431,2]
[314004748,1707923432252,-2605.00836615,0.00022431,2]
[314004749,1707923432262,-14877.54736799,0.00022431,2]
[314004750,1707923432272,-18290.13630584,0.00022432,2]
[314004751,1707923432285,-27655.7648395,0.00022432,2]
[314004752,1707923432306,-23686.5,0.00022432,2]
[314004753,1707923432318,-367.52434221,0.00022432,2]
[314004754,1707923432330,-361.875,0.00022432,2]
[314004755,1707923432343,-3036.304,0.00022432,2]
[314004756,1707923432360,-27258.6132567,0.00022432,2]
[314004757,1707923432369,-155.17821276,0.00022432,2]
[314004758,1707923432380,-10553.48847873,0.00022432,2]
[314004759,1707923432389,-1141.64225557,0.00022434,2]
[314004760,1707923432399,-792.89664718,0.00022434,2]
[314004761,1707923432409,-155.0,0.00022434,2]
[314004762,1707923432419,-182.17668954,0.00022434,2]
[314004763,1707923432429,-181.5052538,0.00022434,2]
[314004764,1707923432439,-198.01264144,0.00022434,2]
[314004766,1707923432449,-155.71076745,0.00022434,2]
[314004768,1707923432458,-1712.70069526,0.00022434,2]
[314004771,1707923432479,-2932.94010398,0.00022434,2]
[314004773,1707923432490,-216.25448592,0.00022434,2]
[314004775,1707923432499,-2115.73557739,0.00022434,2]
[314004778,1707923432512,-2023.86855566,0.00022434,2]
[314004780,1707923432521,-2014.69577476,0.00022434,2]
[314004782,1707923432533,-2180.46422524,0.00022434,2]
[314004784,1707923432543,-283.60621214,0.00022435,2]
[314004785,1707923432552,-1256.1738266,0.00022435,2]
[314004787,1707923432563,-289.81239716,0.00022435,2]
[314004788,1707923432573,-2881.18389293,0.00022435,2]
[314004789,1707923432583,-2102.95106314,0.00022436,2]
[314004790,1707923432592,-364.34693458,0.00022436,2]
[314004791,1707923432604,-204.17365487,0.00022436,2]
[314004792,1707923432614,-155.0,0.00022436,2]
[314004793,1707923432624,-432.71239679,0.00022436,2]
[314004794,1707923432634,-200.0,0.00022436,2]
[314004795,1707923432643,-41.17539655,0.00022436,2]
[314004796,1707923432656,-167.57786047,0.00022436,2]
[314004797,1707923432666,-155.0,0.00022436,2]
[314004798,1707923432675,-156.39541135,0.00022436,2]
[314004799,1707923432685,-155.0,0.00022436,2]
[314004800,1707923432696,-1834.29335133,0.00022436,2]
[314004801,1707923432705,-157.65274752,0.00022436,2]
[314004802,1707923432715,-155.12030812,0.00022436,2]
[314004803,1707923432727,-184.23916149,0.00022436,2]
[314004804,1707923432737,-250.73094676,0.00022436,2]
[314004805,1707923432747,-155.79514091,0.00022436,2]
[314004806,1707923432757,-155.0,0.00022436,2]
[314004807,1707923432766,-409.18998271,0.00022436,2]
[314004808,1707923432777,-156.19140517,0.00022436,2]
[314004809,1707923432787,-414.05898229,0.00022436,2]
[314004810,1707923432798,-155.00391382,0.00022437,2]
[314004811,1707923432808,-524.26463775,0.000225,2]
[314004812,1707923432821,-2240.01658352,0.000225,2]
[314004813,1707923432831,-229.23,0.00022646,2]
[314004814,1707923432841,-143.8621437,0.00022744,2]
[314004815,1707923432857,-19.7078563,0.00022744,2]
[314004816,1707923432866,-499.99,0.0002277,2]
[314004817,1707923432876,-155.44862017,0.00022896,2]
[314004818,1707923432885,-171.39713619,0.000229,2]
[314004819,1707923432895,-314.08570636,0.000229,2]
[314004820,1707923432905,-388.5883118,0.000229,2]
[314004821,1707923432914,-7596.31578228,0.000229,2]
[314004822,1707923432923,-281.07,0.00022981,2]
[314004823,1707923432933,-2262.83972616,0.00022996,2]
[314004824,1707923432945,-200.85097969,0.00022996,2]
[314004825,1707923432955,-419.94549017,0.00022996,2]
[314004826,1707923432966,-626.03266572,0.00022996,2]
[314004827,1707923432977,-1180.36287393,0.00022996,2]
[314004828,1707923432988,-425.16211427,0.00022997,5]
[314004829,1707923432998,-500.0,0.00022998,2]
[314004830,1707923433008,-9289.20273697,0.00022998,2]
[314004831,1707923433021,-21754.49929888,0.00022998,2]
[314004832,1707923433031,-358.4877294,0.00022998,2]
[314004833,1707923433041,-770.16281459,0.00022998,2]
[314004834,1707923433051,-212.96144381,0.00022998,2]
[314004835,1707923433061,-277.63946251,0.00022998,2]
[314004836,1707923433071,-538.89447105,0.00022999,2]
[314004837,1707923433081,-500.0,0.00022999,2]
[314004838,1707923433090,-578.87814066,0.00022999,2]
[314004839,1707923433103,-56092.95671875,0.00023,2]
[314004840,1707923433146,-731817.96708488,0.00023,2]
[314004841,1707923433156,-451280.04151593,0.00023,2]
[314004842,1707923433168,-359.46626394,0.00023,2]
[314004850,1707923438090,-13505.95248156,0.00023,2]
[314004851,1707923438109,-806.22789131,0.00023,2]
[314004852,1707923438216,-8660.71437973,0.00023,2]
[314004853,1707923438268,-2682.04645476,0.00023,2]
[314004854,1707923438279,-1291.975,0.00023,2]
[314004855,1707923438291,-409.61679941,0.00023,2]
[314004856,1707923438304,-306108.83592815,0.00023,2]
[314004857,1707923438313,-2609.07512197,0.00023,2]
[314004858,1707923438322,-155.92,0.00023153,2]
[314004859,1707923438331,-209.0,0.00023205,2]
[314004860,1707923438341,-155.92,0.00023246,2]
[314004861,1707923438353,-155.92,0.00023339,2]
[314004862,1707923438364,-250.0,0.00023352,2]
[314004863,1707923438374,-200.0,0.00023426,2]
[314004864,1707923438383,-250.0,0.00023428,2]
[314004865,1707923438392,-155.92,0.00023432,2]
[314004866,1707923438401,-155.92,0.00023525,2]
[314004867,1707923438410,-320.99,0.0002356,2]
[314004868,1707923438419,-646.76,0.00023605,2]
[314004869,1707923438428,-155.92,0.00023618,2]
[314004870,1707923438437,-155.92,0.0002371,2]
[314004871,1707923438447,-155.92,0.00023803,2]
[314004872,1707923438456,-153.63,0.00023841,2]
[314004873,1707923438465,-155.92,0.00023896,2]
[314004874,1707923438474,-155.92,0.00023989,2]
[314004875,1707923438483,-44649.5,0.00024,2]
[314004876,1707923438492,-202.22442285,0.00024,2]
[314004877,1707923438502,-155.92,0.00024082,2]
[314004878,1707923438511,-150.0,0.00024095,2]
[314004879,1707923438520,-155.92,0.00024175,2]
[314004880,1707923438529,-7596.31578223,0.00024246,2]
[314004881,1707923438538,-155.92,0.00024267,2]
[314004882,1707923438547,-155.92,0.0002436,2]
[314004883,1707923438558,-3872.34,0.00024384,2]
[314004884,1707923438567,-220.57,0.00024468,2]
[314004885,1707923438576,-600.0,0.00024511,2]
[314004886,1707923438585,-155.44862015,0.00024564,2]
[314004887,1707923438594,-19252.21979484,0.000246,2]
[314004888,1707923438607,-250.0,0.00024658,2]
[314004889,1707923438617,-200.0,0.00024676,2]
[314004890,1707923438626,-183.0,0.00024724,2]
[314004891,1707923438635,-153.0,0.00024849,2]
[314004892,1707923438645,-209.0,0.00024849,2]
[314004893,1707923438654,-229.23,0.0002491,2]
[314004894,1707923438663,-1250.0,0.00025,3]
[314004895,1707923438673,-200.0,0.00025,2]
[314004896,1707923438682,-155.0,0.00025,2]
[314004897,1707923438691,-512.26744547,0.00025,2]
[314004898,1707923438701,-3000.0,0.00025,2]
[314004899,1707923438711,-3000.0,0.0002501,2]
[314004900,1707923438720,-388.58831174,0.00025015,2]
[314004901,1707923438730,-3000.0,0.0002502,2]
[314004902,1707923438739,-3000.0,0.0002503,2]
[314004903,1707923438748,-3000.0,0.0002504,2]
[314004904,1707923438757,-3000.0,0.0002505,2]
[314004905,1707923438766,-4949.711699,0.0002506,2]
[314004906,1707923438775,-320.99,0.00025204,2]
[314004907,1707923438785,-400.0,0.0002534,2]
[314004908,1707923438795,-153.63,0.00025528,2]
[314004909,1707923438803,-7596.31578223,0.00025592,2]
[314004910,1707923438813,-314.08570634,0.000259,2]
[314004911,1707923438822,-155.44862015,0.00026232,2]
[314004912,1707923438831,-153.0,0.00026493,2]
[314004913,1707923438840,-209.0,0.00026493,2]
[314004914,1707923438849,-150.0,0.000267,2]
[314004915,1707923438861,-320.99,0.00026847,2]
[314004916,1707923438870,-7596.31578223,0.00026939,2]
[314004917,1707923438879,-418.5019054,0.00027,2]
[314004918,1707923438888,-1300.0,0.00027,3]
[314004919,1707923438897,-155.16189438,0.00027,2]
[314004920,1707923438907,-300.0,0.0002704,2]
[314004921,1707923438916,-156.8303386,0.0002708,2]
[314004922,1707923438926,-948.45035289,0.0002708,2]
[314004923,1707923438936,-3395.92,0.00027123,2]
[314004924,1707923438948,-388.58831174,0.00027131,3]
[314004925,1707923438958,-229.23,0.00027174,2]
[314004926,1707923438967,-183.0,0.00027197,2]
[314004927,1707923438978,-153.63,0.00027214,2]
[314004928,1707923438987,-600.0,0.00027234,2]
[314004929,1707923438997,-2438.36514512,0.0002738,2]
[314004930,1707923439006,-150.0,0.00027397,2]
[314004931,1707923439017,-200.0,0.00027397,2]
[314004932,1707923439027,-39491.42,0.00027397,2]
[314004933,1707923439038,-7429.98,0.00027397,2]
[314004934,1707923439050,-14642.29,0.00027397,2]
[314004935,1707923439059,-2000.0,0.000274,2]
[314004936,1707923439068,-155.0,0.0002748,2]
[314004937,1707923439077,-250.0,0.0002748,2]
[314004938,1707923439086,-155.28403879,0.000275,2]
[314004939,1707923439095,-7429.98,0.00027556,2]
[314004940,1707923439108,-7429.98,0.00027714,2]
[314004941,1707923439118,-186.47212307,0.000278,2]
[314004942,1707923439127,-7429.98,0.00027872,2]
[314004943,1707923439137,-155.44862015,0.000279,2]
[314004944,1707923439147,-15079.53932972,0.000279,2]
[314004945,1707923439156,-664.90313922,0.000279,2]
[314004946,1707923439165,-150.0,0.00027945,2]
[314004947,1707923439174,-172026.49899771,0.00028,2]
[314004948,1707923439183,-936.46556254,0.00028,2]
[314004949,1707923439193,-14828.43018801,0.00028,2]
[314004950,1707923439202,-296.56860376,0.00028,2]
[314004951,1707923439211,-7429.98,0.0002803,2]
[314004952,1707923439221,-2937.10411449,0.000281,2]
[314004953,1707923439230,-153.0,0.00028137,2]
[314004954,1707923439239,-209.0,0.00028137,2]
[314004955,1707923439249,-7429.98,0.00028189,2]
[314004956,1707923439258,-7596.31578223,0.00028285,2]
[314004957,1707923439267,-7429.98,0.00028347,2]
[314004958,1707923439277,-6019.40845648,0.0002848,7]
[314004959,1707923439286,-43399.91750167,0.0002848,7]
[314004960,1707923439295,-24852.61019393,0.0002848,7]
[314004961,1707923439305,-320.99,0.00028491,2]
[314004962,1707923439315,-150.0,0.00028493,2]
[314004963,1707923439324,-7429.98,0.00028505,2]
[314004964,1707923439334,-400.0,0.00028507,2]
[314004965,1707923439344,-7429.98,0.00028664,2]
[314004966,1707923439356,-7429.98,0.00028822,2]
[314004967,1707923439365,-155.0,0.0002885,2]
[314004968,1707923439375,-314.08570634,0.000289,2]
[314004969,1707923439384,-153.63,0.000289,2]
[314004970,1707923439394,-158.29674006,0.00029,2]
[314004971,1707923439404,-150.0,0.00029041,2]
[314004972,1707923439415,-388.58831174,0.00029246,4]
[314004973,1707923439424,-229.23,0.00029438,2]
[314004974,1707923439434,-168.94535204,0.00029589,2]
[314004975,1707923439444,-7596.31578223,0.00029631,2]
[314004976,1707923439453,-183.0,0.00029669,2]
[314004977,1707923439462,-172.09224,0.00029724,2]
[314004978,1707923439472,-175.952616,0.00029724,2]
[314004979,1707923439481,-335.783888,0.00029724,2]
[314004980,1707923439491,-524.561441,0.00029724,2]
[314004981,1707923439500,-239.698895,0.00029724,2]
[314004982,1707923439509,-171.997842,0.00029724,2]
[314004983,1707923439518,-2743.459862,0.00029724,2]
[314004984,1707923439529,-506.362656,0.00029724,2]
[314004985,1707923439540,-3208.471018,0.00029724,2]
[314004986,1707923439549,-171.997842,0.00029724,2]
[314004987,1707923439558,-1005.128753,0.00029724,2]
[314004988,1707923439567,-1114.997328,0.00029724,2]
[314004989,1707923439576,-171.805838,0.00029724,2]
[314004990,1707923439585,-184.569893,0.00029724,2]
[314004991,1707923439594,-1243.009266,0.00029724,2]
[314004992,1707923439606,-153.0,0.00029781,2]
[314004993,1707923439615,-209.0,0.00029781,2]
[314004994,1707923439626,-176.48526302,0.000298,2]
[314004995,1707923439635,-600.0,0.00029958,2]
[314004996,1707923439646,-155.0,0.0003,2]
[314004997,1707923439655,-337578.92313077,0.0003,4]
[314004998,1707923439666,-319.64145428,0.0003,2]
[314004999,1707923439674,-3000.0,0.0003,2]
[314005000,1707923439683,-8339.66203193,0.0003,2]
[314005001,1707923439693,-155.0,0.0003,2]
[314005002,1707923439701,-90684.95081705,0.0003,2]
[314005003,1707923439711,-4000.0,0.0003,3]
[314005004,1707923439720,-500.0,0.0003,2]
[314005005,1707923439730,-1000.0,0.0003,2]
[314005006,1707923439740,-335.783888,0.00030095,2]
[314005007,1707923439750,-524.561441,0.00030095,2]
[314005008,1707923439759,-2743.459862,0.00030095,2]
[314005009,1707923439769,-506.362656,0.00030095,2]
[314005010,1707923439779,-3208.471018,0.00030095,2]
[314005011,1707923439788,-1005.128753,0.00030095,2]
[314005012,1707923439797,-1114.997328,0.00030095,2]
[314005013,1707923439807,-1243.009266,0.00030095,2]
[314005014,1707923439816,-2000.0,0.000301,2]
[314005015,1707923439826,-320.99,0.00030135,2]
[314005016,1707923439835,-155.0,0.0003022,2]
[314005017,1707923439846,-335.783888,0.00030467,2]
[314005018,1707923439857,-524.561441,0.00030467,2]
[314005020,1707923439867,-2743.459862,0.00030467,2]
[314005022,1707923439876,-506.362656,0.00030467,2]
[314005023,1707923439885,-3208.471018,0.00030467,2]
[314005025,1707923439895,-1005.128753,0.00030467,2]
[314005026,1707923439904,-1114.997328,0.00030467,2]
[314005027,1707923439913,-1243.009266,0.00030467,2]
[314005028,1707923439923,-335.783888,0.00030838,2]
[314005029,1707923439932,-524.561441,0.00030838,2]
[314005030,1707923439943,-2743.459862,0.00030838,2]
[314005031,1707923439953,-506.362656,0.00030838,2]